lending/lending_fUSD_20241228
["ID","MTS","AMOUNT","RATE_DAILY","PERIOD"]
[346913242,1735367438483,-81.73661376,0.00012959,2]
[346913243,1735367438495,-68.26338624,0.00012959,2]
[346913244,1735367438505,-274.69926172,0.00012962,2]
[346913245,1735367438526,-528.67073828,0.00012962,2]
[346913246,1735367438535,-500.0,0.00012962,2]
[346913247,1735367438544,-500.0,0.00012962,2]
[346913248,1735367438555,-500.0,0.00012962,2]
[346913249,1735367438565,-38.54904738,0.0001297,2]
[346913250,1735367438576,-275.51859053,0.0001297,2]
[346913251,1735367438589,-85.93236209,0.0001297,2]
[346913252,1735367438598,-1000.0,0.00012981,2]
[346913253,1735367438607,-277.0409962,0.00012986,2]
[346913254,1735367438616,-6313.33664171,0.00012988,2]
[346913259,1735367440035,-318.11678409,0.00012715,2]
[346913260,1735367440045,-583.26340169,0.00012988,2]
[346913261,1735367440057,-34791.26071843,0.00012988,2]
[346913262,1735367440140,-2845.885929,0.00012934,2]
[346913263,1735367440152,-2954.114071,0.00012934,2]
[346913264,1735367440162,-1249.46167735,0.00012988,2]
[346913265,1735367440171,-424.29467263,0.00012988,2]
[346913266,1735367440183,-197.67532737,0.00012988,2]
[346913267,1735367440192,-158.751718,0.00012989,2]
[346913268,1735367440201,-3888.90516902,0.00012989,2]
[346913269,1735367440212,-152.39595598,0.00012989,2]
[346913270,1735367440222,-2391.53426797,0.00012989,2]
[346913271,1735367440233,-920.66440203,0.00012989,2]
[346913272,1735367440243,-501.12687176,0.00012989,2]
[346913273,1735367440253,-500.0,0.00012989,2]
[346913274,1735367440263,-500.0,0.00012989,2]
[346913275,1735367440273,-507.60940859,0.00012989,2]
[346913276,1735367440283,-500.0,0.00012989,2]
[346913277,1735367440293,-397.39931761,0.00012989,2]
[346913278,1735367440305,-102.60068239,0.00012989,2]
[346913279,1735367440314,-1235.35659389,0.00012989,2]
[346913280,1735367440326,-6886.10702961,0.00012989,2]
[346913281,1735367440336,-500.0,0.00012989,2]
[346913282,1735367440345,-500.0,0.00012989,2]
[346913283,1735367440355,-500.0,0.00012989,2]
[346913284,1735367440365,-1029.25,0.00012989,2]
[346913285,1735367440375,-543.25,0.00012989,2]
[346913286,1735367440384,-267.87,0.00012989,2]
[346913287,1735367440394,-796.73,0.00012989,2]
[346913288,1735367440403,-307.83577531,0.00012989,2]
[346913289,1735367440414,-3940.2210897,0.00012989,2]
[346913290,1735367440424,-500.0,0.00012989,2]
[346913291,1735367440433,-500.0,0.00012989,2]
[346913292,1735367440443,-199.73,0.00012989,2]
[346913293,1735367440452,-500.0,0.00012989,2]
[346913294,1735367440462,-2142.78,0.00012989,2]
[346913295,1735367440471,-161.93703622,0.00012989,2]
[346913296,1735367440483,-471.11002,0.00012989,2]
[346913297,1735367440495,-304.33735203,0.00012989,2]
[346913298,1735367440514,-135.38559175,0.00012989,2]
[346913299,1735367440524,-500.0,0.00012989,2]
[346913300,1735367440534,-500.0,0.00012989,2]
[346913302,1735367440544,-476.4922833,0.00012989,2]
[346913304,1735367440555,-500.0,0.00012989,2]
[346913307,1735367440565,-1149.77,0.00012989,2]
[346913308,1735367440574,-500.0,0.00012989,2]
[346913310,1735367440584,-500.0,0.00012989,2]
[346913312,1735367440594,-600.06,0.00012989,2]
[346913314,1735367440603,-500.0,0.00012989,2]
[346913316,1735367440613,-500.0,0.00012989,2]
[346913318,1735367440623,-480.88391667,0.00012989,2]
[346913320,1735367440632,-636.92,0.00012989,2]
[346913322,1735367440642,-977.73,0.00012989,2]
[346913325,1735367440653,-500.0,0.00012989,2]
[346913327,1735367440662,-294.45781159,0.00012989,2]
[346913329,1735367440672,-304.44482345,0.00012989,2]
[346913331,1735367440682,-500.0,0.00012989,2]
[346913333,1735367440691,-500.0,0.00012989,2]
[346913335,1735367440701,-500.0,0.00012989,2]
[346913336,1735367440709,-500.0,0.00012989,2]
[346913339,1735367440719,-1544.9,0.00012989,2]
[346913340,1735367440729,-500.0,0.00012989,2]
[346913342,1735367440738,-500.0,0.00012989,2]
[346913344,1735367440747,-500.0,0.00012989,2]
[346913346,1735367440757,-500.0,0.00012989,2]
[346913348,1735367440767,-533.91606563,0.00012989,2]
[346913350,1735367440776,-407.53,0.00012989,2]
[346913352,1735367440784,-500.0,0.00012989,2]
[346913354,1735367440793,-500.0,0.00012989,2]
[346913356,1735367440803,-1715.33,0.00012989,2]
[346913358,1735367440812,-500.0,0.00012989,2]
[346913360,1735367440821,-494.59505439,0.00012989,2]
[346913362,1735367440830,-500.0,0.00012989,2]
[346913364,1735367440839,-500.0,0.00012989,2]
[346913366,1735367440848,-765.03,0.00012989,2]
[346913368,1735367440856,-11555.2791963,0.0001299,2]
[346913370,1735367440868,-128050.75588386,0.0001299,2]
[346913372,1735367440877,-833.16916812,0.0001299,2]
[346913374,1735367440886,-220402.55304176,0.0001299,2]
[346913376,1735367440897,-32593.34610552,0.0001299,2]
[346913378,1735367440906,-6707.408019,0.00012991,2]
[346913380,1735367440915,-5293.3524146,0.00012991,2]
[346913382,1735367440925,-3879.2968101,0.00012991,2]
[346913384,1735367440934,-2465.2412056,0.00012991,2]
[346913386,1735367440943,-1051.1856011,0.00012991,2]
[346913388,1735367440951,-3255.3837485,0.00012991,2]
[346913390,1735367440960,-2570.5464074,0.00012991,2]
[346913392,1735367440969,-1885.7090662,0.00012991,2]
[346913394,1735367440978,-1200.871725,0.00012991,2]
[346913396,1735367440988,-516.0343838,0.00012991,2]
[346913398,1735367440997,-476.4922833,0.00012991,2]
[346913400,1735367441006,-476.4922833,0.00012991,2]
[346913402,1735367441015,-476.4922833,0.00012991,2]
[346913404,1735367441025,-476.4922833,0.00012991,2]
[346913406,1735367441034,-476.4922833,0.00012991,2]
[346913407,1735367441043,-202.38599008,0.00012998,3]
[346913408,1735367441052,-1070.70619385,0.00012998,3]
[346913409,1735367441061,-1070.70619385,0.00012998,3]
[346913410,1735367441071,-1041.87450953,0.00012998,2]
[346913411,1735367441080,-1000.0,0.00012999,2]
[346913412,1735367441089,-1000.0,0.00012999,3]
[346913413,1735367441099,-1000.0,0.00012999,4]
[346913414,1735367441108,-26380.08831538,0.00012999,2]
[346913442,1735367443100,-5000.0,0.0001289,2]
[346913443,1735367443111,-1028.07,0.00012989,2]
[346913444,1735367443121,-2220.14481038,0.00012999,2]
[346913445,1735367443136,-68327.57350101,0.00012999,2]
[346913446,1735367443149,-2901.18779003,0.00012999,2]
[346913447,1735367443161,-11467.06769897,0.00012999,2]
[346913448,1735367443173,-8127.0,0.00012999,2]
[346913449,1735367443199,-1462.80771459,0.00012999,2]
[346913450,1735367443281,-358.67365013,0.00012437,2]
[346913451,1735367443360,-5425.45034987,0.00012437,2]
[346913452,1735367443369,-13493.24178112,0.00012999,2]
[346913453,1735367443380,-7390.591513,0.00012999,2]
[346913461,1735367446141,-11272.95709027,0.00012999,2]
[346913462,1735367446153,-831.11245992,0.00012999,2]
[346913463,1735367446164,-27753.86190212,0.00012999,2]
[346913464,1735367446178,-123755.02187252,0.00012999,2]
[346913465,1735367446187,-150.0,0.00012999,2]
[346913466,1735367446197,-321.24194775,0.00012999,2]
[346913467,1735367446206,-1000.0,0.00012999,2]
[346913468,1735367446216,-1070.70619385,0.00012999,3]
[346913469,1735367446225,-1070.70619385,0.00012999,3]
[346913470,1735367446234,-1076.24939944,0.00012999,3]
[346913471,1735367446244,-1076.24939944,0.00012999,3]
[346913472,1735367446254,-54017.59151323,0.00012999,2]
[346913473,1735367446278,-22200.000002,0.00012999,2]
[346913474,1735367446297,-2029.11848477,0.00012999,2]
[346913475,1735367446307,-500.0,0.00012999,2]
[346913476,1735367446316,-219.8941,0.00012999,2]
[346913477,1735367446325,-500.0,0.00012999,2]
[346913478,1735367446334,-500.0,0.00012999,2]
[346913479,1735367446344,-206.24867003,0.00012999,2]
[346913480,1735367446353,-1653.0,0.00012999,2]
[346913481,1735367446362,-496.31972523,0.00013,2]
[346913482,1735367446371,-9294.09071317,0.00013,2]
[346913483,1735367446382,-8112.19916213,0.00013,2]
[346913484,1735367446394,-882.47667716,0.00013,2]
[346913485,1735367446405,-23449.66708463,0.00013,2]
[346913486,1735367446425,-32777.98806115,0.00013,2]
[346913487,1735367446436,-11172.37992,0.00013,2]
[346913488,1735367446447,-5192.7683044,0.00013,2]
[346913489,1735367446458,-660.00000004,0.00013,2]
[346913506,1735368539931,357.92,9.587e-05,2]
[346913517,1735368632405,-171.61,0.00010137,2]
[346913518,1735368632415,-772.75759131,0.00011,2]
[346913519,1735368632425,-421.94629818,0.00011296,2]
[346913520,1735368632436,-2132.88938176,0.00011296,2]
[346913521,1735368632448,-166.03257832,0.00011296,2]
[346913522,1735368632459,-2720.86725826,0.00011296,2]
[346913523,1735368632469,-150.0,0.00011504,2]
[346913524,1735368632478,-423.7,0.00011528,2]
[346913525,1735368632488,-182.64,0.0001154,2]
[346913526,1735368632499,-150.0,0.00011688,2]
[346913527,1735368632508,-150.0,0.00011688,2]
[346913528,1735368632519,-150.0,0.00011688,2]
[346913529,1735368632528,-150.0,0.00011688,2]
[346913530,1735368632538,-111.01031833,0.00011747,2]
[346913531,1735368632551,-645.57705506,0.00011747,2]
[346913532,1735368632563,-243.41262661,0.00011747,2]
[346913533,1735368632572,-250.0,0.00011763,2]
[346913534,1735368632582,-3486.35,0.00011791,2]
[346913535,1735368632591,-150.0,0.00011806,2]
[346913536,1735368632601,-357.92,0.00011851,2]
[346913537,1735368632610,-150.0,0.00011863,2]
[346913538,1735368632619,-150.0,0.00011873,2]
[346913539,1735368632629,-168.98,0.00011878,2]
[346913540,1735368632638,-150.0,0.00011924,2]
[346913541,1735368632647,-639.24,0.00011952,2]
[346913542,1735368632657,-500.0,0.00011972,2]
[346913543,1735368632666,-150.0,0.00012012,2]
[346913544,1735368632675,-150.0,0.00012042,2]
[346913545,1735368632684,-1450.07,0.00012055,2]
[346913546,1735368632693,-150.0,0.00012059,2]
[346913547,1735368632704,-250.0,0.00012067,2]
[346913548,1735368632720,-150.0,0.0001216,2]
[346913550,1735368632730,-150.0,0.00012192,2]
[346913552,1735368632739,-365.19,0.00012192,2]
[346913554,1735368632748,-371.62290537,0.0001224,2]
[346913558,1735368632776,-7.73709463,0.0001224,2]
[346913559,1735368632786,-399.71,0.0001224,2]
[346913560,1735368632795,-150.0,0.00012244,2]
[346913561,1735368632804,-150.0,0.00012278,2]
[346913562,1735368632813,-150.0,0.00012337,2]
[346913563,1735368632823,-451.472,0.0001235,2]
[346913564,1735368632832,-150.0,0.00012396,2]
[346913565,1735368632841,-376.41,0.00012406,2]
[346913566,1735368632851,-150.0,0.0001243,2]
[346913567,1735368632859,-11.88825332,0.00012514,2]
[346913569,1735368632881,-138.11174668,0.00012514,2]
[346913570,1735368632890,-147.97727076,0.00012615,2]
[346913571,1735368632909,-2.02272924,0.00012615,2]
[346913572,1735368632918,-150.0,0.00012632,2]
[346913573,1735368632927,-150.0,0.00012662,2]
[346913574,1735368632936,-410.00094393,0.0001274,2]
[346913575,1735368638186,-902.63081299,0.00012485,2]
[346913576,1735368638198,-144.43233232,0.00012485,2]
[346913577,1735368638209,-726.54130825,0.0001274,2]
[346913578,1735368638218,-1112.59744248,0.0001274,2]
[346913579,1735368638228,-150.0,0.0001275,2]
[346913580,1735368638238,-1558.17,0.000128,2]
[346913581,1735368638248,-1981.861,0.000128,2]
[346913582,1735368638260,-169.36,0.000128,2]
[346913583,1735368638269,-150.0,0.00012801,2]
[346913584,1735368638278,-150.0,0.00012868,2]
[346913585,1735368638287,-500.0,0.00012888,2]
[346913586,1735368638296,-5665.0006,0.00012888,2]
[346913587,1735368638305,-1005.6246,0.00012899,2]
[346913588,1735368638314,-435.62687203,0.000129,2]
[346913589,1735368638348,-564.37312797,0.000129,2]
[346913590,1735368638358,-201.8,0.000129,2]
[346913591,1735368638367,-152.63081703,0.000129,2]
[346913592,1735368638379,-781.51713884,0.000129,2]
[346913593,1735368638389,-5000.0,0.000129,2]
[346913594,1735368638401,-365.0,0.000129,2]
[346913595,1735368638411,-1000.0,0.000129,2]
[346913596,1735368638420,-230.0,0.000129,2]
[346913597,1735368638430,-4135.16506752,0.00012926,2]
[346913598,1735368638515,-1664.83493248,0.00012926,2]
[346913599,1735368638526,-200.0,0.00012932,2]
[346913600,1735368638535,-1031.5602322,0.00012934,2]
[346913669,1735368640428,-4768.4397678,0.00012934,2]
[346913670,1735368640438,-423.7,0.00012969,2]
[346913671,1735368640447,-400.0,0.0001297,2]
[346913672,1735368640457,-500.38589904,0.00012973,2]
[346913673,1735368640467,-500.0,0.00012973,2]
[346913674,1735368640475,-150.00000019,0.00012986,2]
[346913675,1735368640486,-150.0,0.00012986,2]
[346913676,1735368640496,-150.0,0.00012986,2]
[346913677,1735368640506,-150.0,0.00012986,2]
[346913678,1735368640515,-1101.86,0.00012988,2]
[346913679,1735368640525,-500.0,0.00012988,2]
[346913680,1735368640534,-500.0,0.00012989,2]
[346913681,1735368640543,-500.0,0.00012989,2]
[346913682,1735368640552,-500.0,0.00012989,2]
[346913683,1735368640570,-500.0,0.00012989,2]
[346913684,1735368640581,-500.0,0.00012989,2]
[346913685,1735368640590,-367.53049618,0.00012989,2]
[346913686,1735368640600,-500.0,0.00012989,2]
[346913687,1735368640609,-986.36,0.00012989,2]
[346913688,1735368640618,-731.72,0.00012989,2]
[346913689,1735368640628,-500.0,0.00012989,2]
[346913690,1735368640638,-1971.5,0.00012989,2]
[346913691,1735368640647,-500.0,0.00012989,2]
[346913692,1735368640656,-1676.03,0.00012989,2]
[346913693,1735368640666,-500.0,0.00012989,2]
[346913694,1735368640675,-500.0,0.00012989,2]
[346913695,1735368640684,-500.0,0.00012989,2]
[346913696,1735368640694,-457.28803314,0.00012989,2]
[346913697,1735368640703,-500.0,0.00012989,2]
[346913698,1735368640712,-183.44508909,0.00012989,2]
[346913699,1735368640721,-500.0,0.00012989,2]
[346913700,1735368640731,-500.0,0.00012989,2]
[346913702,1735368640740,-500.0,0.00012989,2]
[346913705,1735368640750,-500.0,0.00012989,2]
[346913706,1735368640759,-500.0,0.00012989,2]
[346913709,1735368640769,-500.0,0.00012989,2]
[346913711,1735368640778,-500.0,0.00012989,2]
[346913713,1735368640787,-243.98185914,0.00012989,2]
[346913715,1735368640796,-500.0,0.00012989,2]
[346913717,1735368640806,-644.37,0.00012989,2]
[346913719,1735368640815,-500.0,0.00012989,2]
[346913720,1735368640825,-659.71,0.00012989,2]
[346913723,1735368640834,-500.0,0.00012989,2]
[346913725,1735368640843,-500.0,0.00012989,2]
[346913727,1735368640852,-2955.93,0.00012989,2]
[346913729,1735368640862,-500.0,0.00012989,2]
[346913731,1735368640871,-539.56,0.00012989,2]
[346913733,1735368640880,-500.0,0.00012989,2]
[346913735,1735368640891,-594.11,0.00012989,2]
[346913737,1735368640900,-500.0,0.00012999,2]
[346913739,1735368640909,-500.0,0.00012999,2]
[346913741,1735368640918,-500.0,0.00012999,2]
[346913743,1735368640927,-500.0,0.00012999,2]
[346913745,1735368640937,-985.23,0.00012999,2]
[346913747,1735368640947,-500.0,0.00012999,2]
[346913749,1735368640956,-500.0,0.00012999,2]
[346913751,1735368640966,-500.0,0.00012999,2]
[346913753,1735368640976,-500.0,0.00012999,2]
[346913755,1735368640985,-500.0,0.00012999,2]
[346913757,1735368640994,-500.0,0.00012999,2]
[346913759,1735368641003,-1480.53,0.00012999,2]
[346913761,1735368641013,-575.05,0.00012999,2]
[346913763,1735368641022,-500.0,0.00012999,2]
[346913765,1735368641031,-500.0,0.00012999,2]
[346913767,1735368641040,-541.66081128,0.00012999,2]
[346913769,1735368641050,-4041.301125,0.00012999,2]
[346913771,1735368641059,-158.751719,0.00012999,2]
[346913773,1735368641069,-936.99,0.00012999,2]
[346913775,1735368641077,-500.0,0.00012999,2]
[346913777,1735368641087,-610.38,0.00012999,2]
[346913779,1735368641096,-3312.19867,0.00012999,2]
[346913781,1735368641106,-500.0,0.00012999,2]
[346913783,1735368641115,-500.0,0.00012999,2]
[346913785,1735368641124,-500.0,0.00012999,2]
[346913787,1735368641134,-733.16,0.00012999,2]
[346913788,1735368641143,-500.0,0.00012999,2]
[346913790,1735368641152,-500.0,0.00012999,2]
[346913792,1735368641161,-500.0,0.00012999,2]
[346913794,1735368641170,-1643.86,0.00012999,2]
[346913797,1735368641180,-596.06,0.00012999,2]
[346913798,1735368641189,-1549.0,0.00013,2]
[346913801,1735368641199,-248.15986261,0.00013,2]
[346913803,1735368641208,-132911.14877817,0.00013,2]
[346913805,1735368641221,-1049.41419005,0.00013,2]
[346913807,1735368641232,-1685.77121904,0.00013,2]
[346913809,1735368641243,-1007.52312096,0.00013,2]
[346913814,1735368641279,-150.0,0.00012967,2]
[346913816,1735368641288,-157791.61681089,0.00013,2]
[346913818,1735368641299,-491.055,0.00013,2]
[346913820,1735368641310,-4919.72166071,0.00013,2]
[346913831,1735368646586,-376.85,0.00012485,2]
[346913832,1735368646596,-150.0,0.00012818,2]
[346913833,1735368646606,-286.0154,0.000129,2]
[346913834,1735368646615,-2832.77,0.00012989,2]
[346913835,1735368646624,-544.6,0.00012989,2]
[346913836,1735368646634,-1380.21913968,0.00013,2]
[346913837,1735368647909,5742.83423861,9.781e-05,7]
[346913838,1735368897322,43326.8937212,9.781e-05,7]
[346913846,1735369705597,336.08,9.287e-05,2]
[346913873,1735369831411,-282.74,0.00010137,2]
[346913876,1735369831420,-250.0,0.00011185,2]
[346913878,1735369831429,-1108.30428466,0.00011288,2]
[346913880,1735369831440,-1125.00411603,0.00011288,2]
[346913882,1735369831452,-1979.34284418,0.00011288,2]
[346913884,1735369831461,-336.08,0.00011551,2]
[346913886,1735369831470,-188.27,0.0001159,2]
[346913888,1735369831479,-351.86418086,0.00011664,2]
[346913891,1735369831495,-478.31588386,0.00011664,2]
[346913901,1735369831583,-169.81993528,0.00011664,2]
[346913903,1735369831592,-150.0,0.00011688,2]
[346913905,1735369831602,-150.0,0.00011688,2]
[346913907,1735369831616,-150.0,0.00011688,2]
[346913909,1735369831628,-150.0,0.00011688,2]
[346913911,1735369831637,-250.0,0.00011773,2]
[346913913,1735369831646,-150.0,0.00011818,2]
[346913915,1735369831655,-300.0,0.00011829,2]
[346913917,1735369831664,-1528.78,0.0001183,2]
[346913919,1735369831674,-13465.91638156,0.000119,2]
[346913922,1735369831685,-2245.37399979,0.000119,2]
[346913924,1735369831700,-550.0,0.000119,2]
[346913996,1735369837366,-15885.07751865,0.000119,2]
[346913997,1735369837376,-150.0,0.00011904,2]
[346913998,1735369837386,-150.0,0.00011947,2]
[346913999,1735369837397,-571.22,0.00011999,2]
[346914000,1735369837407,-944.18,0.00011999,2]
[346914001,1735369837418,-500.0,0.00011999,2]
[346914002,1735369837428,-500.0,0.00011999,2]
[346914003,1735369837437,-500.0,0.00011999,2]
[346914004,1735369837447,-500.0,0.00011999,2]
[346914005,1735369837455,-500.0,0.00011999,2]
[346914006,1735369837465,-551.09,0.00011999,2]
[346914007,1735369837474,-500.0,0.00011999,2]
[346914008,1735369837483,-500.0,0.00011999,2]
[346914009,1735369837492,-1418.84,0.00011999,2]
[346914010,1735369837502,-158.751719,0.00011999,2]
[346914011,1735369837511,-4041.301125,0.00011999,2]
[346914012,1735369837521,-897.95,0.00011999,2]
[346914013,1735369837532,-500.0,0.00011999,2]
[346914014,1735369837542,-3312.19867,0.00011999,2]
[346914015,1735369837551,-500.0,0.00011999,2]
[346914016,1735369837561,-500.0,0.00011999,2]
[346914017,1735369837572,-500.0,0.00011999,2]
[346914018,1735369837582,-500.0,0.00011999,2]
[346914019,1735369837591,-500.0,0.00011999,2]
[346914020,1735369837600,-500.0,0.00011999,2]
[346914021,1735369837610,-500.0,0.00011999,2]
[346914022,1735369837619,-702.61,0.00011999,2]
[346914023,1735369837628,-345.12733099,0.00011999,2]
[346914024,1735369837637,-27378.7397202,0.00012,2]
[346914025,1735369837649,-9624.74887865,0.00012,2]
[346914026,1735369837660,-562.48140947,0.00012,2]
[346914027,1735369837672,-2254.88152453,0.00012,2]
[346914029,1735369837693,-240689.28474156,0.00012,2]
[346914031,1735369837702,-150.0,0.00012077,2]
[346914033,1735369837711,-150.0,0.00012121,2]
[346914034,1735369837720,-150.0,0.00012121,2]
[346914035,1735369837729,-169.52,0.0001216,2]
[346914036,1735369837738,-150.0,0.00012207,2]
[346914037,1735369837748,-571.22,0.00012273,2]
[346914038,1735369837757,-944.18,0.00012273,2]
[346914039,1735369837770,-500.0,0.00012273,2]
[346914040,1735369837780,-500.0,0.00012273,2]
[346914041,1735369837789,-500.0,0.00012273,2]
[346914042,1735369837799,-500.0,0.00012273,2]
[346914043,1735369837808,-500.0,0.00012273,2]
[346914044,1735369837818,-551.09,0.00012273,2]
[346914045,1735369837826,-500.0,0.00012273,2]
[346914046,1735369837835,-500.0,0.00012273,2]
[346914047,1735369837845,-1418.84,0.00012273,2]
[346914048,1735369837856,-4041.301125,0.00012273,2]
[346914049,1735369837867,-897.95,0.00012273,2]
[346914050,1735369837876,-500.0,0.00012273,2]
[346914051,1735369837886,-3312.19867,0.00012273,2]
[346914052,1735369837898,-500.0,0.00012273,2]
[346914053,1735369837907,-500.0,0.00012273,2]
[346914054,1735369837916,-500.0,0.00012273,2]
[346914055,1735369837925,-500.0,0.00012273,2]
[346914056,1735369837936,-500.0,0.00012273,2]
[346914057,1735369837945,-500.0,0.00012273,2]
[346914058,1735369837954,-500.0,0.00012273,2]
[346914059,1735369837963,-702.61,0.00012273,2]
[346914060,1735369837973,-370.15,0.00012284,2]
[346914061,1735369837982,-376.43,0.00012284,2]
[346914062,1735369837991,-378.27,0.00012284,2]
[346914063,1735369838000,-368.92,0.00012285,2]
[346914064,1735369838009,-372.33,0.00012285,2]
[346914065,1735369838018,-375.17,0.00012287,2]
[346914066,1735369838027,-378.12,0.00012289,2]
[346914067,1735369838036,-372.34,0.00012292,2]
[346914068,1735369838045,-382.24,0.000123,2]
[346914069,1735369838054,-2329.0,0.000123,5]
[346914070,1735369838063,-18694.89,0.000123,2]
[346914071,1735369838072,-381.46,0.000123,2]
[346914072,1735369838081,-375.37,0.000123,2]
[346914073,1735369838090,-380.14,0.000123,2]
[346914074,1735369838100,-375.96,0.000123,2]
[346914075,1735369838110,-200.0,0.00012303,2]
[346914076,1735369838120,-150.0,0.00012337,2]
[346914077,1735369838129,-150.0,0.00012337,2]
[346914078,1735369838138,-445.195,0.0001235,2]
[346914079,1735369838147,-163.41378786,0.00012399,2]
[346914080,1735369838156,-163.41378783,0.00012399,2]
[346914081,1735369838165,-163.41378783,0.00012399,2]
[346914082,1735369838174,-163.41378783,0.00012415,2]
[346914083,1735369838183,-200.0,0.00012434,2]
[346914084,1735369838192,-200.0,0.00012441,2]
[346914085,1735369838202,-200.0,0.00012457,2]
[346914086,1735369838211,-150.0,0.00012467,2]
[346914087,1735369838220,-163.41378783,0.00012496,2]
[346914088,1735369838229,-9500.0,0.000125,10]
[346914089,1735369838238,-571.22,0.00012547,2]
[346914090,1735369838247,-944.18,0.00012547,2]
[346914091,1735369838257,-500.0,0.00012547,2]
[346914092,1735369838266,-500.0,0.00012547,2]
[346914093,1735369838275,-500.0,0.00012547,2]
[346914094,1735369838284,-500.0,0.00012547,2]
[346914095,1735369838294,-500.0,0.00012547,2]
[346914096,1735369838303,-551.09,0.00012547,2]
[346914097,1735369838312,-500.0,0.00012547,2]
[346914098,1735369838321,-500.0,0.00012547,2]
[346914099,1735369838330,-1418.84,0.00012547,2]
[346914100,1735369838339,-4041.301125,0.00012547,2]
[346914101,1735369838348,-897.95,0.00012547,2]
[346914102,1735369838357,-500.0,0.00012547,2]
[346914103,1735369838367,-3312.19867,0.00012547,2]
[346914104,1735369838376,-500.0,0.00012547,2]
[346914105,1735369838388,-500.0,0.00012547,2]
[346914106,1735369838397,-500.0,0.00012547,2]
[346914107,1735369838406,-500.0,0.00012547,2]
[346914108,1735369838415,-500.0,0.00012547,2]
[346914109,1735369838424,-500.0,0.00012547,2]
[346914110,1735369838433,-500.0,0.00012547,2]
[346914111,1735369838442,-702.61,0.00012547,2]
[346914112,1735369838451,-150.0,0.00012553,2]
[346914113,1735369838459,-150.0,0.00012553,2]
[346914114,1735369838468,-150.0,0.00012597,2]
[346914115,1735369838478,-9500.0,0.000126,11]
[346914116,1735369838487,-9500.0,0.000127,12]
[346914117,1735369838497,-150.0,0.00012727,2]
[346914118,1735369838506,-150.0,0.0001277,2]
[346914119,1735369838515,-4212.65124487,0.00012788,2]
[346914120,1735369838524,-5000.0,0.00012799,2]
[346914121,1735369838533,-1656.68,0.000128,2]
[346914122,1735369838544,-9500.0,0.000128,13]
[346914123,1735369838554,-379.8879,0.000128,2]
[346914124,1735369838563,-1896.953,0.00012803,2]
[346914125,1735369838572,-170.745,0.00012803,2]
[346914126,1735369838581,-248.15986261,0.00012821,2]
[346914127,1735369838590,-44442.59310153,0.00012821,2]
[346914128,1735369838602,-998.39519968,0.00012821,2]
[346914129,1735369839604,-163.41378783,0.00012577,2]
[346914130,1735369839614,-311.0303745,0.00012821,2]
[346914151,1735369842823,-319.76,0.000115,2]
[346914152,1735369842833,-43093.19477413,0.00012821,2]
[346914164,1735369898871,288.80029604,9.781e-05,7]
[346914165,1735369899626,32449.5762638,9.781e-05,7]
[346914505,1735371031589,-329.17,9.731e-05,2]
[346914507,1735371031599,-171.61,0.00010137,2]
[346914509,1735371031608,-300.0,0.00010999,2]
[346914510,1735371031618,-9995.74301842,0.00011,2]
[346914511,1735371031627,-1988.63751961,0.00011288,2]
[346914512,1735371031636,-1988.63751961,0.00011288,2]
[346914513,1735371031645,-1988.63751961,0.00011288,2]
[346914514,1735371031654,-1988.63751961,0.00011288,2]
[346914515,1735371031663,-1988.63751961,0.00011288,2]